Cogmind - Beta 13 @@@ ROGUE MODE // 2024.02.27 @ 15:00:33 Player: Kaz Result: Destroyed by G-34 Mercenary with Small Laser Performance ------------- Evolutions (1) 500 Regions Visited (3) 600 Robots Destroyed (64) 320 Value Destroyed (1415) 1415 Prototype IDs (4) 80 Alien Tech Used (0) 0 Bonus (75) 75 TOTAL SCORE: 2990 Bonus ------- High Alert Combat Kills 25 Follower Combat Kills 50 Cogmind --------- Core Integrity 0/400 Matter 277/300 Energy 280/280 System Corruption 0% Temperature Cool (16) Movement Rolling (215) Ox9 Location -9/Materials Parts ------- > --- POWER (1) -------- Heavy Ion Engine > --- PROPULSION (2) --- Wheel > --- UTILITY (4) ------ High-capacity Storage Unit High-capacity Storage Unit Core Shielding > --- WEAPON (2) ------- Light Assault Rifle Light Assault Rifle > --- INVENTORY (20) --- Heavy Ion Engine Heavy Ion Engine Heavy Ion Engine Wheel Wheel Wheel Wheel Armored Wheel Huge Storage Unit Large Matter Pod (150) Compact Matter Pod (150) Recoil Stabilizer Recoil Stabilizer Assault Rifle Peak State ------------ > --- POWER ------------ Heavy Ion Engine > --- PROPULSION ------- Wheel Wheel > --- UTILITY ---------- High-capacity Storage Unit High-capacity Storage Unit Bomb Drone Bay > --- WEAPON ----------- Assault Rifle Assault Rifle > --- INVENTORY -------- Heavy Ion Engine Heavy Ion Engine Heavy Ion Engine Heavy Ion Engine Aluminum Leg Carbon-fiber Leg Large Matter Pod Compact Matter Pod Recoil Stabilizer Recoil Stabilizer Core Shielding Assault Rifle Heavy Assault Rifle Heavy Assault Rifle [Rating: 26] Favorites ----------- Power Ion Engine Engine Ion Engine Propulsion Wheel Leg Aluminum Leg Wheel Wheel Utility High-capacity Storage Unit Device Bomb Drone Bay Storage High-capacity Storage Unit Protection Core Shielding Weapon Heavy Assault Rifle Energy Gun Small Laser Ballistic Gun Heavy Assault Rifle Build | -11 -10 -10 -9 ------- Run | Yrd Mat Min Mat Slots Evolved 2 | . . . 2 Power . | . . . . Propulsion . | . . . . Utility 2 | . . . 2 Weapon . | . . . . Parts Attached 53 | 8 17 3 25 Power 8 | 1 3 2 2 Engine 8 | 1 3 2 2 Core . | . . . . Reactor . | . . . . Propulsion 17 | 2 5 . 10 Treads . | . . . . Leg 2 | . . . 2 Wheel 15 | 2 5 . 8 Hover . | . . . . Flight . | . . . . Utility 13 | 2 5 . 6 Device 1 | . . . 1 Storage 7 | 2 5 . . Processor . | . . . . Hackware . | . . . . Protection 5 | . . . 5 Artifact . | . . . . Weapon 15 | 3 4 1 7 Energy Gun 2 | 1 1 . . Energy Cannon . | . . . . Ballistic Gun 13 | 2 3 1 7 Ballistic Cannon . | . . . . Launcher . | . . . . Special Weapon . | . . . . Impact Weapon . | . . . . Slashing Weapon . | . . . . Piercing Weapon . | . . . . Special Melee Weapon . | . . . . Unidentified Prototypes 2 | . . . 2 Parts Lost 21 | . 8 . 13 Power 2 | . 1 . 1 Propulsion 11 | . 5 . 6 Utility 2 | . . . 2 Weapon 6 | . 2 . 4 Highest Loss Streak 7 | . 4 . 7 To Critical Strikes . | . . . . Average Slot Usage (%) 94 | . 97 99 88 Engine 12 | . 13 14 10 Wheel 24 | . 25 28 20 Storage 25 | . 28 28 22 Protection 5 | . . . 13 Ballistic Gun 24 | . 25 27 20 Naked Turns . | . . . . Heaviest Build 100 | 18 89 90 100 Greatest Support 32 | 32 32 20 26 Greatest Overweight (x) 9 | . 4 4 9 Average Overweight (x) 3 | . 1 4 4 Largest Inventory Capacity 20 | 8 20 20 20 Average Capacity 17 | 6 12 20 20 Most Carried 19 | 4 17 19 18 Average Carried 13 | 1 9 17 13 Final Capacity 20 | 8 20 20 20 Final Carried 18 | 4 17 18 14 Class Distribution -------------------- 83% | Mutant 16% | Scavenger-Mutant Dominant Class ---------------- Mutant | -10/Materials Mutant | -10/Mines Mutant | -9/Materials Resources | -11 -10 -10 -9 ----------- Run | Yrd Mat Min Mat Matter Collected 2039 | 263 806 185 785 Remotely . | . . . . Salvage Created 2218 | 64 695 255 1204 Parts 149 | 3 52 22 72 Haulers Intercepted 4 | . 2 . 2 Recyclers Shooed 1 | . 1 . . Parts Field Recycled . | . . . . Retrieved Matter . | . . . . Parts Self-Destructed . | . . . . Prevented . | . . . . Kills | -11 -10 -10 -9 ------- Run | Yrd Mat Min Mat Combat Hostiles Destroyed 45 | . 12 9 24 Melee 1 | . . 1 . Guns 44 | . 12 8 24 Classes Destroyed 10 | 1 6 . 3 Worker 4 | . 2 . 2 Builder 4 | . 4 . . Hauler 4 | . 2 . 2 Recycler 3 | 1 1 . 1 Watcher 4 | . 3 . 1 Swarmer 15 | . 6 5 4 Grunt 22 | . 6 4 12 Brawler 2 | . . . 2 Duelist 1 | . . . 1 Sentry 5 | . . . 5 Best Kill Streak 7 | 1 7 3 4 Combat Bots Only 4 | . 3 3 4 Max Kills in Single Turn 1 | 1 1 1 1 Gunslinging . | . . . . Exploded . | . . . . Melee 1 | . . 1 . Uniques/NPCs Destroyed . | . . . . Combat | -11 -10 -10 -9 -------- Run | Yrd Mat Min Mat Hostile Shots Fired 340 | . 121 37 182 Missed 85 | . 33 11 41 Damage Taken 3009 | . 996 263 1750 Core 598 | . 150 40 408 Absorbed by Shields . | . . . . Redirected to Shielding 71 | . . . 71 Regen/Repaired (Parts) 150 | . . . 150 Core Remaining (%) 62 | 100 . 24 . Volleys Fired 217 | 2 93 23 99 Largest 2 | 2 2 2 2 Hottest 85 | 60 85 43 46 Shots Fired 397 | 4 172 46 175 Gun 397 | 4 172 46 175 Cannon . | . . . . Launcher . | . . . . Special . | . . . . Kinetic 362 | 2 139 46 175 Thermal 35 | 2 33 . . Explosive . | . . . . Electromagnetic . | . . . . Robot Hit Streak 11 | 2 11 6 9 Robot Miss Streak 11 | 1 11 5 5 Penetration Max . | . . . . Secondary Targets 11 | . 5 3 3 Max Gunslinging Chain 1 | . 1 1 1 Shots Hit Robots 228 | 3 88 27 110 Core Hits 104 | 2 35 15 52 Critical Kills 1 | . . . 1 Critical Parts Destroyed 1 | . . 1 . Critical Strikes 3 | . 1 1 1 Burn 1 | . 1 . . Destroy 2 | . . 1 1 Melee Attacks . | . . . . Impact . | . . . . Slashing . | . . . . Piercing . | . . . . Sneak Attacks . | . . . . Combat Hostiles . | . . . . Follow-up Attacks . | . . . . Damage Inflicted 3010 | 37 1250 359 1364 Guns 2980 | 37 1232 347 1364 Cannons . | . . . . Explosions . | . . . . Melee . | . . . . Ramming 30 | . 18 12 . Kinetic 2707 | 13 983 347 1364 Thermal 273 | 24 249 . . Explosive . | . . . . Electromagnetic . | . . . . Impact . | . . . . Slashing . | . . . . Piercing . | . . . . Highest Corruption 1 | . 1 1 . Average Corruption 1 | . 1 1 . Corruption Purged . | . . . . Corruption Blocked . | . . . . Effects 8 | . . 8 . Message Errors 1 | . . 1 . Matter Fused 2 | . . 2 . Heat Flow Errors 1 | . . 1 . Energy Discharges 1 | . . 1 . Data Loss (minor) 1 | . . 1 . Data Loss (major) 1 | . . 1 . Alerts 1 | . . 1 . Overload Shots . | . . . . Overflow Damage . | . . . . Projectiles . | . . . . Explosions . | . . . . Melee . | . . . . Knockbacks . | . . . . Impact . | . . . . Kinetic . | . . . . Secondary . | . . . . Self-Inflicted Damage 14 | . 8 6 . Shots . | . . . . Rammed 4 | . 3 1 . Targets Rammed 4 | . 3 1 . Kicked . | . . . . Crushed . | . . . . Highest Temperature 304 | . 304 291 23 Average Temperature 92 | . 101 171 7 Received Heat Transfer 972 | . 330 66 576 Effects 1 | . 1 . . Energy Bleed 1 | . 1 . . Siege Activations . | . . . . Robots Corrupted . | . . . . Combat Hostiles . | . . . . Parts Fried . | . . . . Impact Corruptions . | . . . . Robots Melted . | . . . . Combat Hostiles . | . . . . Parts Melted 3 | . 3 . . Heat Transferred 695 | 50 645 . . Parts Sabotaged . | . . . . Parts Stolen . | . . . . Parts Stripped . | . . . . Power Chain Reactions . | . . . . Alert | -11 -10 -10 -9 ------- Run | Yrd Mat Min Mat Peak Influence 461 | 5 194 168 461 Initial 13 | . 3 13 . Average 132 | 1 85 60 233 Maximum Alert Level 2 | . . . 2 Low Security (%) 80 | 100 100 100 47 Level 1 17 | . . . 47 Level 2 1 | . . . 4 Level 3 . | . . . . Level 4 . | . . . . Level 5 . | . . . . High Security . | . . . . Max Security . | . . . . Squads Dispatched 9 | . 6 . 3 Investigation 6 | . 4 . 2 Extermination . | . . . . Reinforcement 3 | . 2 . 1 Assault . | . . . . Garrison . | . . . . Intercept . | . . . . Searches Triggered . | . . . . Construction Impeded . | . . . . Haulers Reinforced . | . . . . Active Scanning Responses . | . . . . Cargo Convoy Interrupts . | . . . . Stealth | -11 -10 -10 -9 --------- Run | Yrd Mat Min Mat Distress Signals 3 | . 2 . 1 Communications Jammed . | . . . . Distress Signals . | . . . . Times Spotted 58 | . 17 10 31 Peak Tracking Total 6 | . 4 3 6 Tactical Retreats 3 | . . . 3 Traps | -11 -10 -10 -9 ------- Run | Yrd Mat Min Mat Traps Triggered 4 | . 2 . 2 Indirectly . | . . . . Trap Hack Attempts . | . . . . Triggered . | . . . . Disarmed . | . . . . Reprogrammed . | . . . . Reused . | . . . . Traps Extracted . | . . . . Installed . | . . . . Triggered . | . . . . Machines | -11 -10 -10 -9 ---------- Run | Yrd Mat Min Mat Machines Disabled 2 | . 1 1 . Max in Single Turn 1 | . 1 1 . Machines Repaired . | . . . . Machines Dismantled . | . . . . Machines Sabotaged . | . . . . Overloaded Fab Kills . | . . . . Hacking | -11 -10 -10 -9 --------- Run | Yrd Mat Min Mat Machines Accessed 9 | . 4 1 4 Terminals 6 | . 4 . 2 Fabricators . | . . . . Repair Stations 2 | . . . 2 Recycling Units . | . . . . Scanalyzers . | . . . . Garrison Access . | . . . . Total Hacks 25 | . 12 1 12 Successful 15 | . 5 1 9 Failed 10 | . 7 . 3 Catastrophic 1 | . . . 1 Database Lockouts . | . . . . Manual . | . . . . Terminals 18 | . 12 . 6 Fabricators . | . . . . Repair Stations 6 | . . . 6 Recycling Units . | . . . . Scanalyzers . | . . . . Garrison Access . | . . . . Terminal Hacks 9 | . 5 1 3 Record 3 | . 2 . 1 Prototype ID Bank 1 | . . . 1 Open Door 1 | . . 1 . Branch Access Points 1 | . 1 . . Locate Traps 1 | . . . 1 Recall Reinforcements 1 | . 1 . . Hauler Manifests 1 | . 1 . . Fabricator Hacks . | . . . . Repair Station Hacks 6 | . . . 6 Scan Component 3 | . . . 3 Repair 3 | . . . 3 Recycling Unit Hacks . | . . . . Scanalyzer . | . . . . Garrison Access Hacks . | . . . . Unauthorized Hacks . | . . . . Terminals . | . . . . Fabricators . | . . . . Repair Stations . | . . . . Recycling Units . | . . . . Scanalyzers . | . . . . Garrison Access . | . . . . Data Cores Recovered . | . . . . Used . | . . . . Hacking Detections 6 | . 3 . 3 Full Trace Events 4 | . 3 . 1 Feedback Events . | . . . . Feedback Blocked . | . . . . Robot Schematics Acquired . | . . . . Robots Built . | . . . . Authchips . | . . . . Time . | . . . . Total Robot Build Rating . | . . . . Part Schematics Acquired . | . . . . Parts Built . | . . . . Authchips . | . . . . Time . | . . . . Total Part Build Rating . | . . . . Parts Repaired 3 | . . . 3 Time 78 | . . . 78 Parts Recycled . | . . . . Recycled Matter . | . . . . Retrieved Matter . | . . . . Retrieved Components . | . . . . Parts Scanalyzed . | . . . . Part Schematics Acquired . | . . . . Parts Damaged . | . . . . Bothacking | -11 -10 -10 -9 ------------ Run | Yrd Mat Min Mat Used RIF Installer . | . . . . Robots Hacked . | . . . . Non-combat . | . . . . Combat . | . . . . Robot Hacks Applied . | . . . . Relay Couplers Released . | . . . . Fabnet Peak Effective % . | . . . . Robots Rewired . | . . . . Allies Hacked . | . . . . Hacks Repelled . | . . . . Allies | -11 -10 -10 -9 -------- Run | Yrd Mat Min Mat Total Allies 1 | . . 1 . Largest Group 1 | . . 1 1 Highest-Rated Group 31 | . . 31 31 Highest-Rated Ally 31 | . . 31 31 Total Orders . | . . . . Ally Attacks 25 | . . . 25 Total Damage 233 | . . . 233 Kills 2 | . . . 2 Allies Corrupted . | . . . . Allies Melted . | . . . . Intel | -11 -10 -10 -9 ------- Run | Yrd Mat Min Mat Robot Analysis Total . | . . . . Derelict Logs Recovered 1 | . . 1 . Drone Launches 16 | . . . 16 Drone Recoveries . | . . . . Exploration | -11 -10 -10 -9 ------------- Run | Yrd Mat Min Mat Turns Passed 3506 | 57 1179 953 1317 Spaces Moved 2023 | 37 779 602 605 Core 7 | 2 5 . . Treads . | . . . . Legs . | . . . . Wheels 2016 | 35 774 602 605 Hover . | . . . . Flight . | . . . . Fastest Speed 50 | 50 80 140 135 Average Speed 127 | 97 107 140 141 Slowest Speed 250 | 100 250 140 215 Overloaded Moves . | . . . . Propulsion Burnouts . | . . . . Robots Hopped . | . . . . Cave-ins Triggered . | . . . . Exploration Rate (%) 60 | 3 97 95 45 Regions Visited 3 Branch Regions 1 Pre-discovered Areas . | . . . . Known Exits Taken 1 | . 1 . . Unknown Exits Taken 2 | 1 . 1 . Scrap Searched 1 | . . 1 . Spaces Dug . | . . . . Terrain Destroyed . | . . . . Melee . | . . . . Projectile . | . . . . AOE . | . . . . Terrain Rammed . | . . . . Walls Destroyed . | . . . . Machines Disabled . | . . . . Actions | -11 -10 -10 -9 --------- Run | Yrd Mat Min Mat Total 2570 | 49 956 667 898 Wait 178 | . 14 34 130 Move 2020 | 36 778 601 605 Hop . | . . . . Pick Up 63 | 3 35 2 23 Fast Attach 9 | 7 . . 2 Attach 28 | . 8 2 18 Detach 2 | . . . 2 Swap 16 | 1 9 1 5 Drop 31 | . 16 3 12 Fire 217 | 2 93 23 99 Melee . | . . . . Ram 4 | . 3 1 . Kick . | . . . . Crush . | . . . . Escape Stasis . | . . . . Rewire 2 | . . . 2 Trap . | . . . . Miscellaneous . | . . . . Route ------- -11/Scrapyard -10/Materials (discovered 6 exits: *Mat x3 / *Min x2 / [*Sub]) -10/Mines (discovered 2 exits: *Mat x2) -9/Materials (discovered 2 exits: [*Min] / Sto) History --------- Turn | Location | Event 6 | -11/Scrapyard | Discovered new exit (range 15) 58 | -11/Scrapyard | Entered Materials 231 | -10/Materials | Lost 4 parts (1p2n1w) 284 | -10/Materials | Discovered new exit (range 10) 314 | -10/Materials | Build established: Mutant 359 | -10/Materials | Identified exit to Mines 437 | -10/Materials | Discovered new exit (range 10) 568 | -10/Materials | Core integrity fell below 50% 930 | -10/Materials | Discovered new exit (range 16) 1147 | -10/Materials | Discovered new exit (range 6) 1237 | -10/Materials | Entered Mines 1543 | -10/Mines | Found the Drone Emporium 1568 | -10/Mines | Found Prototype Device 1688 | -10/Mines | Escorted by a lone wolf Derelict 1696 | -10/Mines | Discovered new exit (range 15) 1768 | -10/Mines | Found a hidden stash of uninstalled traps 1875 | -10/Mines | Discovered new exit (range 5) 2190 | -10/Mines | Entered Materials 2190 | -9/Materials | Accompanied by 1 ally 2190 | -9/Materials | Evolved 2 slots: Utility x2 2191 | -9/Materials | Identified exit to Storage 2700 | -9/Materials | Identified Bomb Drone Bay 2737 | -9/Materials | Discovered new exit (range 19) 2768 | -9/Materials | Lost 6 allies 2808 | -9/Materials | Core integrity fell below 50% 2823 | -9/Materials | Core integrity fell below 20% 2844 | -9/Materials | Lost 7 parts (1p2n1u3w) 3174 | -9/Materials | Repaired Assault Rifle 3202 | -9/Materials | Repaired Wheel 3355 | -9/Materials | Build established: Scavenger-Mutant 3471 | -9/Materials | Repaired Core Shielding 3507 | -9/Materials | Destroyed by G-34 Mercenary with Small Laser Last Messages --------------- 03295_ Dropped Carbon-fiber Leg. 03296_ Dropped Aluminum Leg. 03354_ Triggered Alarm Trap. 03354_ An alarm sounds. 03354_ ALERT: Alarm triggered, dispatching investigation squad. 03445_ Connecting with Repair Station... >>Scan(Core Shielding) Scanning Core Shielding... Ready to Repair: Core Shielding Rating: 1 Time: 26 >>Repair Repairing Core Shielding... ETC: 26 03471_ Repair station completes Core Shielding repairs. 03471_ Acquired Core Shielding. 03491_ G-34 Mercenary destroyed. 03492_ Wheel destroyed. 03505_ G-34 Mercenary destroyed. Map ----- +----------------------------------------------------+ | | | | | | | | | | | | | | | | | | | | | ###############????????????????? | | # #????????????????? | | # """ """ """ #????????????????? | | # """ """ """ #????????????????? | | # """ """ """ #????????????????? | | # #????????????????? | | # #????????????????? | | ?###+##########????????????????? | | ??# #?????????????????????? | | ??# #?????????????????????? | | ??# ##+###########???????????? | | ??# #g #???????????? | | ??# # """ """ #???????????? | | ??# # """ R" #???????????? | | ??# #* """ """ #???????????? | | ??# !%/@ #???????????? | | ??# %=##############???????????? | | ?## ## #?????????????????? | | ?# *# """#?????????????????? | | ?# # """#?????????????????? | | ?# + """#?????????????????? | | ?# # #?????????????????? | | ?# # #?????????????????? | | ?### ### #?????????????????? | | ???# #?#######?????????????????? | | ???# #?????????????????? ????? | | ???# #??###########????# ????? | | ???# #??# #????# ????? | | ???# #??# #????# ????? | | ???# #??# #????# ????? | | ???# #??# == #????# ????? | | ???# ########+#####????# ??### | | ???# #????????# #?# | | ???# ######## #????????# #?# | | ???#+#####??# #????????# #?# | | ???# ?# #????????# #?# | | ???# """ ?# #???????## ### | | ???# """ # ###?????# ## | | ???# """ # #?????# "" ## | | ???# + #?????+ T + | +----------------------------------------------------+ Best States ------------- Heat Dissipation 28 Energy Generation 14 Energy Capacity 280 Matter Stores 300 Matter Capacity 300 Sight Range 16 Terrain Scan Density 10 Armor Coverage 150 Core Shielding 20 Evasion (%) 44 Item Schematics ----------------- None Robot Schematics ------------------ None Fabricated ------------ Nothing Alien Tech Used ----------------- None Achievements -------------- Fist Fight Challenges ------------ None Game ------ Seed SiegeReactiveCompressor Manual? 0 Play Time 00:41:00 Cumulative 128.0 hours Start 2024.02.27 @ 13:16:44 End 2024.02.27 @ 15:00:33 Sessions 1 Manual Loads 0 Difficulty Rogue Special Mode None Game No. 68 Rogue 56 Adventurer 12 Explorer 0 Win Type - Total 1 Types 1/0/0/0/0/0/0/0/0 Lore% 18 Gallery% 36 Achievement% 29 Wizard Run 0 Options --------- Layout 1 ASCII 0 Keyboard 0 Movement Mouse Keybinds 0 Fullscreen 1 Font 32/SmallcapsGlow Map View 77x35 Zoom Use 0% Tactical HUD 1 Map Filters NONE Filters NONE Steam 1 RUN: 3542090b-c0ba-4878-9ff8-8fc3c5cdc96d